[Event "Titled Tuesday Blitz February 15 Early 2022"]
[White "Harish, Neeraj"]
[Black "Rychagov, Andrey"]
[WhiteFideId "30958130"]
[BlackFideId "4119932"]
[WhiteElo "1545"]
[BlackElo "2500"]
[Result "0-1"]
[Round "03"]
[TimeControl "180+1"]
[Date "2022.02.15"]
[WhiteClock "0:00:03"]
[BlackClock "0:00:10"]

1. e4 {[%clk 0:02:59]}  c5 {[%clk 0:02:59]} 2. Nf3 {[%clk 0:02:59]}  e6 {[%clk 0:02:59]} 3. d4 {[%clk 0:02:56]}  cxd4 {[%clk 0:02:59]} 4. Nxd4 {[%clk 0:02:57]}  a6 {[%clk 0:03:00]} 5. Bd3 {[%clk 0:02:56]}  Bc5 {[%clk 0:02:59]} 6. Nb3 {[%clk 0:02:54]}  Be7 {[%clk 0:02:59]} 7. O-O {[%clk 0:02:53]}  d6 {[%clk 0:02:58]} 8. Nc3 {[%clk 0:02:52]}  Nf6 {[%clk 0:02:58]} 9. f4 {[%clk 0:02:49]}  Nc6 {[%clk 0:02:58]} 10. Be3 {[%clk 0:02:48]}  O-O {[%clk 0:02:58]} 11. Qf3 {[%clk 0:02:41]}  Qc7 {[%clk 0:02:57]} 12. Rad1 {[%clk 0:02:40]}  Rb8 {[%clk 0:02:52]} 13. h3 {[%clk 0:02:15]}  b5 {[%clk 0:02:52]} 14. g4 {[%clk 0:02:11]}  Bb7 {[%clk 0:02:46]} 15. g5 {[%clk 0:02:10]}  Nd7 {[%clk 0:02:46]} 16. h4 {[%clk 0:01:59]}  b4 {[%clk 0:02:41]} 17. Ne2 {[%clk 0:01:52]}  Nc5 {[%clk 0:02:38]} 18. Ng3 {[%clk 0:01:37]}  Nxd3 {[%clk 0:02:32]} 19. Rxd3 {[%clk 0:01:37]}  Rfd8 {[%clk 0:02:21]} 20. Nd4 {[%clk 0:01:19]}  Nxd4 {[%clk 0:02:15]} 21. Bxd4 {[%clk 0:01:14]}  Bf8 {[%clk 0:01:58]} 22. f5 {[%clk 0:01:10]}  e5 {[%clk 0:01:57]} 23. Bf2 {[%clk 0:00:59]}  a5 {[%clk 0:01:53]} 24. h5 {[%clk 0:00:59]}  Ba6 {[%clk 0:01:51]} 25. g6 {[%clk 0:00:52]}  Qxc2 {[%clk 0:01:49]} 26. Rdd1 {[%clk 0:00:43]}  Bxf1 {[%clk 0:01:42]} 27. Rxf1 {[%clk 0:00:44]}  f6 {[%clk 0:01:37]} 28. h6 {[%clk 0:00:37]}  Rb7 {[%clk 0:01:36]} 29. Nh5 {[%clk 0:00:29]}  d5 {[%clk 0:01:35]} 30. exd5 {[%clk 0:00:20]}  e4 {[%clk 0:01:35]} 31. Qg4 {[%clk 0:00:20]}  Qxb2 {[%clk 0:01:29]} 32. Rd1 {[%clk 0:00:16]}  Qxa2 {[%clk 0:00:58]} 33. Nxf6+ {[%clk 0:00:14]}  Kh8 {[%clk 0:00:43]} 34. gxh7 {[%clk 0:00:09]}  Rf7 {[%clk 0:00:33]} 35. Nh5 {[%clk 0:00:09]}  Rxd5 {[%clk 0:00:31]} 36. Bd4 {[%clk 0:00:08]}  Rxd4 {[%clk 0:00:30]} 37. Rxd4 {[%clk 0:00:07]}  Qa1+ {[%clk 0:00:18]} 38. Rd1 {[%clk 0:00:06]}  Qe5 {[%clk 0:00:17]} 39. hxg7+ {[%clk 0:00:05]}  Rxg7 {[%clk 0:00:16]} 40. Nxg7 {[%clk 0:00:05]}  Qxg7 {[%clk 0:00:16]} 41. Qxg7+ {[%clk 0:00:03]}  Bxg7 {[%clk 0:00:16]} 42. Kf2 {[%clk 0:00:04]}  a4 {[%clk 0:00:12]} 43. Ke3 {[%clk 0:00:05]}  a3 {[%clk 0:00:12]} 44. Kxe4 {[%clk 0:00:04]}  a2 {[%clk 0:00:11]} 45. Kd3 {[%clk 0:00:03]}  b3 {[%clk 0:00:10]} 46. Re1 {[%clk 0:00:01]}  b2 {[%clk 0:00:10]} 47. Re8+ {[%clk 0:00:02]}  Kxh7 {[%clk 0:00:11]} 48. Rf8 {[%clk 0:00:03]}  b1=Q+ {[%clk 0:00:10]} 0-1


[Site "https://www.chess.com"]

[Event "Titled Tuesday Blitz February 15 Early 2022"]
[White "Hirneise, Jens"]
[Black "Visakh N R"]
[WhiteFideId "24614734"]
[BlackFideId "25012223"]
[WhiteElo "2323"]
[BlackElo "2454"]
[Result "0-1"]
[Round "03"]
[TimeControl "180+1"]
[Date "2022.02.15"]
[WhiteClock "0:00:06"]
[BlackClock "0:01:04"]

1. e4 {[%clk 0:03:00]}  c5 {[%clk 0:02:55]} 2. Nc3 {[%clk 0:02:57]}  e6 {[%clk 0:02:54]} 3. f4 {[%clk 0:02:56]}  Nc6 {[%clk 0:02:52]} 4. Nf3 {[%clk 0:02:55]}  d5 {[%clk 0:02:51]} 5. Bb5 {[%clk 0:02:50]}  Ne7 {[%clk 0:02:51]} 6. O-O {[%clk 0:02:44]}  a6 {[%clk 0:02:48]} 7. Bxc6+ {[%clk 0:02:40]}  Nxc6 {[%clk 0:02:49]} 8. exd5 {[%clk 0:02:35]}  exd5 {[%clk 0:02:49]} 9. Re1+ {[%clk 0:02:29]}  Be7 {[%clk 0:02:48]} 10. d4 {[%clk 0:02:29]}  O-O {[%clk 0:02:46]} 11. h3 {[%clk 0:02:09]}  Bf5 {[%clk 0:02:37]} 12. Be3 {[%clk 0:02:07]}  Be4 {[%clk 0:02:34]} 13. Ne5 {[%clk 0:01:26]}  Nxd4 {[%clk 0:02:03]} 14. Bxd4 {[%clk 0:01:21]}  cxd4 {[%clk 0:02:04]} 15. Qxd4 {[%clk 0:01:22]}  Rc8 {[%clk 0:02:00]} 16. Nxe4 {[%clk 0:01:16]}  dxe4 {[%clk 0:01:58]} 17. Qxe4 {[%clk 0:01:17]}  Qb6+ {[%clk 0:01:58]} 18. Kh1 {[%clk 0:01:16]}  Qxb2 {[%clk 0:01:58]} 19. Nc4 {[%clk 0:00:44]}  Qb4 {[%clk 0:01:44]} 20. Rab1 {[%clk 0:00:25]}  Qxc4 {[%clk 0:01:43]} 21. Qxe7 {[%clk 0:00:21]}  b5 {[%clk 0:01:43]} 22. Qb7 {[%clk 0:00:17]}  Rc6 {[%clk 0:01:20]} 23. a4 {[%clk 0:00:10]}  bxa4 {[%clk 0:01:17]} 24. Rb4 {[%clk 0:00:09]}  Qxc2 {[%clk 0:01:17]} 25. Ra1 {[%clk 0:00:09]}  Rc4 {[%clk 0:01:12]} 26. Rxc4 {[%clk 0:00:05]}  Qxc4 {[%clk 0:01:12]} 27. Qd7 {[%clk 0:00:04]}  Qxf4 {[%clk 0:01:08]} 28. Rxa4 {[%clk 0:00:04]}  Qf6 {[%clk 0:01:08]} 29. Qb7 {[%clk 0:00:03]}  Rd8 {[%clk 0:01:05]} 30. Qf3 {[%clk 0:00:01]}  Qxf3 {[%clk 0:01:04]} 31. gxf3 {[%clk 0:00:02]}  Ra8 {[%clk 0:01:05]} 32. Kg1 {[%clk 0:00:03]}  g5 {[%clk 0:01:04]} 33. Kf2 {[%clk 0:00:04]}  Kg7 {[%clk 0:01:04]} 34. Ke3 {[%clk 0:00:05]}  a5 {[%clk 0:01:04]} 35. Kd4 {[%clk 0:00:06]}  Kg6 {[%clk 0:01:04]} 0-1


[Site "https://www.chess.com"]

[Event "Titled Tuesday Blitz February 15 Early 2022"]
[White "Hoffmann, Asa"]
[Black "Kozlov, Gennady"]
[WhiteFideId "2001470"]
[BlackFideId "4191668"]
[WhiteElo "2117"]
[BlackElo "2392"]
[Result "1-0"]
[Round "03"]
[TimeControl "180+1"]
[Date "2022.02.15"]
[WhiteClock "0:00:40"]
[BlackClock "0:01:30"]

1. d4 {[%clk 0:02:54]}  e6 {[%clk 0:02:33]} 2. e4 {[%clk 0:02:53]}  d5 {[%clk 0:02:31]} 3. e5 {[%clk 0:02:53]}  c5 {[%clk 0:02:30]} 4. Nf3 {[%clk 0:02:53]}  Nc6 {[%clk 0:02:30]} 5. Bd3 {[%clk 0:02:53]}  Bd7 {[%clk 0:02:30]} 6. O-O {[%clk 0:02:52]}  Qc7 {[%clk 0:02:29]} 7. c3 {[%clk 0:02:47]}  f6 {[%clk 0:02:29]} 8. Bf4 {[%clk 0:02:46]}  O-O-O {[%clk 0:02:28]} 9. Na3 {[%clk 0:02:40]}  fxe5 {[%clk 0:02:27]} 10. Nxe5 {[%clk 0:02:31]}  Nxe5 {[%clk 0:02:26]} 11. Bxe5 {[%clk 0:02:30]}  Bd6 {[%clk 0:02:26]} 12. Bxg7 {[%clk 0:02:27]}  Bxh2+ {[%clk 0:02:20]} 13. Kh1 {[%clk 0:02:27]}  Ne7 {[%clk 0:02:19]} 14. Bxh8 {[%clk 0:02:26]}  Rxh8 {[%clk 0:02:20]} 15. dxc5 {[%clk 0:02:16]}  Be5 {[%clk 0:02:13]} 16. Qh5 {[%clk 0:02:12]}  Ng6 {[%clk 0:02:10]} 17. Rae1 {[%clk 0:02:02]}  Bf6 {[%clk 0:02:08]} 18. Nb5 {[%clk 0:01:47]}  Bxb5 {[%clk 0:02:05]} 19. Bxb5 {[%clk 0:01:47]}  Nf4 {[%clk 0:02:00]} 20. Qg4 {[%clk 0:01:31]}  h5 {[%clk 0:01:58]} 21. Qf3 {[%clk 0:01:29]}  e5 {[%clk 0:01:55]} 22. g3 {[%clk 0:01:21]}  Qxc5 {[%clk 0:01:53]} 23. gxf4 {[%clk 0:01:15]}  e4 {[%clk 0:01:53]} 24. Qh3+ {[%clk 0:01:13]}  Kb8 {[%clk 0:01:52]} 25. Bd7 {[%clk 0:01:06]}  h4 {[%clk 0:01:49]} 26. Rd1 {[%clk 0:01:01]}  Bd8 {[%clk 0:01:48]} 27. Qe6 {[%clk 0:00:58]}  Bc7 {[%clk 0:01:48]} 28. Rxd5 {[%clk 0:00:53]}  Qf8 {[%clk 0:01:46]} 29. f5 {[%clk 0:00:50]}  Qg7 {[%clk 0:01:43]} 30. Rg1 {[%clk 0:00:48]}  Qh7 {[%clk 0:01:42]} 31. Qg6 {[%clk 0:00:47]}  Qe7 {[%clk 0:01:39]} 32. Be6 {[%clk 0:00:46]}  a6 {[%clk 0:01:37]} 33. Qf7 {[%clk 0:00:44]}  Qxf7 {[%clk 0:01:34]} 34. Bxf7 {[%clk 0:00:43]}  Rh7 {[%clk 0:01:33]} 35. Be6 {[%clk 0:00:42]}  Rh6 {[%clk 0:01:31]} 36. Rg6 {[%clk 0:00:41]}  Rh7 {[%clk 0:01:30]} 37. f6 {[%clk 0:00:41]}  h3 {[%clk 0:01:30]} 38. f7 {[%clk 0:00:40]} 1-0


[Site "https://www.chess.com"]

[Event "Titled Tuesday Blitz February 15 Early 2022"]
[White "Jaracz, Pawel"]
[Black "Kirillov, Dmitry"]
[WhiteFideId "1102222"]
[BlackFideId "34180572"]
[WhiteElo "2429"]
[BlackElo "2076"]
[Result "1-0"]
[Round "03"]
[TimeControl "180+1"]
[Date "2022.02.15"]
[WhiteClock "0:00:20"]
[BlackClock "0:00:07"]

1. e4 {[%clk 0:03:00]}  c5 {[%clk 0:03:00]} 2. Nc3 {[%clk 0:02:58]}  e6 {[%clk 0:02:58]} 3. Nf3 {[%clk 0:02:58]}  Nc6 {[%clk 0:02:58]} 4. d4 {[%clk 0:02:56]}  cxd4 {[%clk 0:02:59]} 5. Nxd4 {[%clk 0:02:56]}  Nf6 {[%clk 0:02:59]} 6. Ndb5 {[%clk 0:02:55]}  Bc5 {[%clk 0:02:58]} 7. Nd6+ {[%clk 0:02:48]}  Ke7 {[%clk 0:02:58]} 8. Nc4 {[%clk 0:02:42]}  d5 {[%clk 0:02:47]} 9. exd5 {[%clk 0:02:41]}  exd5 {[%clk 0:02:48]} 10. Na4 {[%clk 0:02:12]}  Bb4+ {[%clk 0:01:34]} 11. c3 {[%clk 0:02:11]}  dxc4 {[%clk 0:01:29]} 12. cxb4 {[%clk 0:02:11]}  Qxd1+ {[%clk 0:01:16]} 13. Kxd1 {[%clk 0:02:11]}  Rd8+ {[%clk 0:01:14]} 14. Ke2 {[%clk 0:02:11]}  Nxb4 {[%clk 0:01:14]} 15. Bd2 {[%clk 0:01:55]}  Nbd5 {[%clk 0:01:06]} 16. f3 {[%clk 0:01:49]}  b5 {[%clk 0:01:05]} 17. Nc3 {[%clk 0:01:39]}  Nxc3+ {[%clk 0:01:03]} 18. Bxc3 {[%clk 0:01:39]}  Bf5 {[%clk 0:01:03]} 19. Kf2 {[%clk 0:01:39]}  a5 {[%clk 0:00:44]} 20. a3 {[%clk 0:01:35]}  Kf8 {[%clk 0:00:40]} 21. Be2 {[%clk 0:01:30]}  Nd5 {[%clk 0:00:40]} 22. Bd4 {[%clk 0:01:30]}  Nf4 {[%clk 0:00:38]} 23. Bc5+ {[%clk 0:01:27]}  Kg8 {[%clk 0:00:39]} 24. Rhd1 {[%clk 0:01:26]}  Bd3 {[%clk 0:00:36]} 25. Bb6 {[%clk 0:01:22]}  Rd6 {[%clk 0:00:29]} 26. Bc7 {[%clk 0:01:06]}  Re6 {[%clk 0:00:29]} 27. Bf1 {[%clk 0:01:04]}  Nd5 {[%clk 0:00:26]} 28. Bxd3 {[%clk 0:01:03]}  cxd3 {[%clk 0:00:24]} 29. Rac1 {[%clk 0:01:02]}  Re2+ {[%clk 0:00:23]} 30. Kg3 {[%clk 0:01:02]}  Nxc7 {[%clk 0:00:17]} 31. Rxc7 {[%clk 0:01:02]}  Rd8 {[%clk 0:00:18]} 32. Rxd3 {[%clk 0:01:01]}  Rde8 {[%clk 0:00:16]} 33. Rb3 {[%clk 0:01:00]}  R2e5 {[%clk 0:00:15]} 34. Rb7 {[%clk 0:00:58]}  Rg5+ {[%clk 0:00:16]} 35. Kf2 {[%clk 0:00:58]}  g6 {[%clk 0:00:15]} 36. R7xb5 {[%clk 0:00:58]}  Rxb5 {[%clk 0:00:16]} 37. Rxb5 {[%clk 0:00:58]}  Rc8 {[%clk 0:00:17]} 38. g4 {[%clk 0:00:55]}  Rc2+ {[%clk 0:00:17]} 39. Kg3 {[%clk 0:00:55]}  a4 {[%clk 0:00:18]} 40. h4 {[%clk 0:00:54]}  Kg7 {[%clk 0:00:17]} 41. Rb7 {[%clk 0:00:52]}  h6 {[%clk 0:00:16]} 42. Kf4 {[%clk 0:00:51]}  Rc4+ {[%clk 0:00:16]} 43. Ke3 {[%clk 0:00:50]}  Rc2 {[%clk 0:00:16]} 44. Kd3 {[%clk 0:00:49]}  Rf2 {[%clk 0:00:16]} 45. Ke4 {[%clk 0:00:49]}  Kf6 {[%clk 0:00:15]} 46. Rb6+ {[%clk 0:00:48]}  Ke7 {[%clk 0:00:16]} 47. h5 {[%clk 0:00:47]}  gxh5 {[%clk 0:00:14]} 48. gxh5 {[%clk 0:00:47]}  Rh2 {[%clk 0:00:15]} 49. Ra6 {[%clk 0:00:44]}  Rxh5 {[%clk 0:00:13]} 50. Rxa4 {[%clk 0:00:44]}  Rh4+ {[%clk 0:00:14]} 51. f4 {[%clk 0:00:44]}  Rh2 {[%clk 0:00:15]} 52. Ra7+ {[%clk 0:00:44]}  Kf6 {[%clk 0:00:15]} 53. Ra6+ {[%clk 0:00:44]}  Ke7 {[%clk 0:00:14]} 54. Rb6 {[%clk 0:00:45]}  h5 {[%clk 0:00:14]} 55. a4 {[%clk 0:00:45]}  h4 {[%clk 0:00:15]} 56. Kf3 {[%clk 0:00:45]}  Rh1 {[%clk 0:00:15]} 57. a5 {[%clk 0:00:42]}  Rg1 {[%clk 0:00:10]} 58. Kf2 {[%clk 0:00:27]}  Rg8 {[%clk 0:00:03]} 59. Rb7+ {[%clk 0:00:24]}  Kf6 {[%clk 0:00:02]} 60. Rb3 {[%clk 0:00:22]}  Ra8 {[%clk 0:00:01]} 61. Ra3 {[%clk 0:00:22]}  h3 {[%clk 0:00:02]} 62. Kg3 {[%clk 0:00:22]}  h2 {[%clk 0:00:02]} 63. Kxh2 {[%clk 0:00:22]}  Kf5 {[%clk 0:00:03]} 64. b4 {[%clk 0:00:22]}  Kxf4 {[%clk 0:00:03]} 65. b5 {[%clk 0:00:23]}  Ke5 {[%clk 0:00:03]} 66. b6 {[%clk 0:00:23]}  Kd6 {[%clk 0:00:04]} 67. b7 {[%clk 0:00:24]}  Rb8 {[%clk 0:00:04]} 68. a6 {[%clk 0:00:24]}  Kc6 {[%clk 0:00:05]} 69. a7 {[%clk 0:00:20]}  Kxb7 {[%clk 0:00:06]} 70. axb8=Q+ {[%clk 0:00:20]}  Kxb8 {[%clk 0:00:07]} 71. Re3 {[%clk 0:00:20]} 1-0


[Site "https://www.chess.com"]

[Event "Titled Tuesday Blitz February 15 Early 2022"]
[White "Khachiyan, Melikset"]
[Black "Allahverdiyeva, Ayan"]
[WhiteFideId "13300512"]
[BlackFideId "13412590"]
[WhiteElo "2484"]
[BlackElo "1910"]
[Result "1-0"]
[Round "03"]
[TimeControl "180+1"]
[Date "2022.02.15"]
[WhiteClock "0:01:06"]
[BlackClock "0:00:01"]

1. d4 {[%clk 0:03:00]}  Nf6 {[%clk 0:01:56]} 2. Nc3 {[%clk 0:02:59]}  d5 {[%clk 0:01:55]} 3. Bg5 {[%clk 0:02:59]}  e6 {[%clk 0:01:54]} 4. e4 {[%clk 0:02:58]}  Bb4 {[%clk 0:01:53]} 5. e5 {[%clk 0:02:58]}  h6 {[%clk 0:01:54]} 6. Bd2 {[%clk 0:02:59]}  Bxc3 {[%clk 0:01:54]} 7. bxc3 {[%clk 0:03:00]}  Ne4 {[%clk 0:01:54]} 8. Qg4 {[%clk 0:03:00]}  Kf8 {[%clk 0:01:55]} 9. Bd3 {[%clk 0:03:01]}  Nxd2 {[%clk 0:01:52]} 10. Kxd2 {[%clk 0:03:02]}  c5 {[%clk 0:01:51]} 11. dxc5 {[%clk 0:03:02]}  Nc6 {[%clk 0:01:51]} 12. Nf3 {[%clk 0:03:02]}  Qa5 {[%clk 0:01:48]} 13. Qf4 {[%clk 0:03:01]}  Qxc5 {[%clk 0:01:42]} 14. Nd4 {[%clk 0:03:01]}  Bd7 {[%clk 0:01:31]} 15. Rhb1 {[%clk 0:03:00]}  b6 {[%clk 0:01:31]} 16. a4 {[%clk 0:03:00]}  Rc8 {[%clk 0:01:27]} 17. Nxc6 {[%clk 0:02:48]}  Rxc6 {[%clk 0:01:27]} 18. Qd4 {[%clk 0:02:49]}  Qxd4 {[%clk 0:01:25]} 19. cxd4 {[%clk 0:02:46]}  Ke7 {[%clk 0:01:26]} 20. a5 {[%clk 0:02:46]}  Rhc8 {[%clk 0:01:21]} 21. axb6 {[%clk 0:02:46]}  axb6 {[%clk 0:01:21]} 22. Ra7 {[%clk 0:02:44]}  Kd8 {[%clk 0:00:57]} 23. Rb7 {[%clk 0:02:43]}  Ra8 {[%clk 0:00:57]} 24. R1xb6 {[%clk 0:02:41]}  Rxb6 {[%clk 0:00:57]} 25. Rxb6 {[%clk 0:02:42]}  Kc7 {[%clk 0:00:57]} 26. Rb1 {[%clk 0:02:37]}  Ra4 {[%clk 0:00:48]} 27. Ke3 {[%clk 0:02:36]}  Ra2 {[%clk 0:00:45]} 28. f4 {[%clk 0:02:34]}  Ba4 {[%clk 0:00:43]} 29. h4 {[%clk 0:02:30]}  h5 {[%clk 0:00:32]} 30. f5 {[%clk 0:02:24]}  Be8 {[%clk 0:00:21]} 31. f6 {[%clk 0:02:17]}  g6 {[%clk 0:00:14]} 32. g3 {[%clk 0:02:03]}  Bc6 {[%clk 0:00:14]} 33. Kf4 {[%clk 0:01:59]}  Ra4 {[%clk 0:00:11]} 34. c3 {[%clk 0:01:57]}  Ra3 {[%clk 0:00:11]} 35. Rc1 {[%clk 0:01:49]}  Kd7 {[%clk 0:00:07]} 36. Kg5 {[%clk 0:01:47]}  Ra2 {[%clk 0:00:06]} 37. Kh6 {[%clk 0:01:38]}  Rg2 {[%clk 0:00:05]} 38. Kg7 {[%clk 0:01:37]}  Rxg3 {[%clk 0:00:03]} 39. Bb1 {[%clk 0:01:33]}  Ke8 {[%clk 0:00:02]} 40. c4 {[%clk 0:01:33]}  g5 {[%clk 0:00:01]} 41. hxg5 {[%clk 0:01:28]}  Rxg5+ {[%clk 0:00:01]} 42. Kh6 {[%clk 0:01:29]}  Rg4 {[%clk 0:00:02]} 43. cxd5 {[%clk 0:01:11]}  Bxd5 {[%clk 0:00:01]} 44. Rc8+ {[%clk 0:01:08]}  Kd7 {[%clk 0:00:01]} 45. Rf8 {[%clk 0:01:09]}  Rxd4 {[%clk 0:00:01]} 46. Rxf7+ {[%clk 0:01:09]}  Ke8 {[%clk 0:00:01]} 47. Bg6 {[%clk 0:01:08]}  Be4 {[%clk 0:00:01]} 48. Re7+ {[%clk 0:01:07]}  Kf8 {[%clk 0:00:01]} 49. Re8# {[%clk 0:01:06]} 1-0


[Site "https://www.chess.com"]

[Event "Titled Tuesday Blitz February 15 Early 2022"]
[White "Khumalo, Keith"]
[Black "Vitiugov, Nikita"]
[WhiteFideId "14319470"]
[BlackFideId "4152956"]
[WhiteElo "1992"]
[BlackElo "2673"]
[Result "0-1"]
[Round "03"]
[TimeControl "180+1"]
[Date "2022.02.15"]
[WhiteClock "0:02:25"]
[BlackClock "0:01:18"]

1. d4 {[%clk 0:03:00]}  Nf6 {[%clk 0:02:59]} 2. c4 {[%clk 0:03:00]}  g6 {[%clk 0:02:59]} 3. Nc3 {[%clk 0:03:00]}  Bg7 {[%clk 0:02:59]} 4. e4 {[%clk 0:03:01]}  d6 {[%clk 0:03:00]} 5. Bd3 {[%clk 0:03:01]}  O-O {[%clk 0:02:59]} 6. Nge2 {[%clk 0:03:02]}  Nc6 {[%clk 0:02:59]} 7. O-O {[%clk 0:03:02]}  Nd7 {[%clk 0:02:58]} 8. Be3 {[%clk 0:03:02]}  e5 {[%clk 0:02:58]} 9. d5 {[%clk 0:03:03]}  Nd4 {[%clk 0:02:58]} 10. Nb5 {[%clk 0:03:03]}  Nxb5 {[%clk 0:02:57]} 11. cxb5 {[%clk 0:03:04]}  f5 {[%clk 0:02:57]} 12. exf5 {[%clk 0:03:03]}  gxf5 {[%clk 0:02:57]} 13. f4 {[%clk 0:03:04]}  Nf6 {[%clk 0:02:29]} 14. h3 {[%clk 0:03:02]}  Kh8 {[%clk 0:02:25]} 15. Bc4 {[%clk 0:03:00]}  Ne4 {[%clk 0:02:17]} 16. Rb1 {[%clk 0:02:56]}  Bd7 {[%clk 0:02:16]} 17. a4 {[%clk 0:02:55]}  Qe7 {[%clk 0:02:14]} 18. Bd3 {[%clk 0:02:51]}  c6 {[%clk 0:01:55]} 19. Bxe4 {[%clk 0:02:47]}  fxe4 {[%clk 0:01:55]} 20. fxe5 {[%clk 0:02:46]}  Bxe5 {[%clk 0:01:55]} 21. dxc6 {[%clk 0:02:45]}  bxc6 {[%clk 0:01:54]} 22. bxc6 {[%clk 0:02:43]}  Rxf1+ {[%clk 0:01:53]} 23. Kxf1 {[%clk 0:02:38]}  Bxc6 {[%clk 0:01:53]} 24. Qc2 {[%clk 0:02:39]}  Qd7 {[%clk 0:01:37]} 25. b3 {[%clk 0:02:37]}  Rg8 {[%clk 0:01:34]} 26. Rc1 {[%clk 0:02:30]}  Bd5 {[%clk 0:01:33]} 27. Qd1 {[%clk 0:02:26]}  Qf7+ {[%clk 0:01:21]} 28. Kg1 {[%clk 0:02:25]}  Qf3 {[%clk 0:01:18]} 0-1


[Site "https://www.chess.com"]

[Event "Titled Tuesday Blitz February 15 Early 2022"]
[White "Kobalia, Mikhail"]
[Black "Shevtchenko, Olesya"]
[WhiteFideId "4119150"]
[BlackFideId "24131890"]
[WhiteElo "2667"]
[BlackElo "2003"]
[Result "1-0"]
[Round "03"]
[TimeControl "180+1"]
[Date "2022.02.15"]
[WhiteClock "0:00:15"]
[BlackClock "0:00:15"]

1. e4 {[%clk 0:03:00]}  c5 {[%clk 0:02:59]} 2. Nf3 {[%clk 0:02:58]}  Nc6 {[%clk 0:02:59]} 3. Bb5 {[%clk 0:02:56]}  e5 {[%clk 0:02:58]} 4. O-O {[%clk 0:02:53]}  Bd6 {[%clk 0:02:58]} 5. c3 {[%clk 0:02:52]}  a6 {[%clk 0:02:58]} 6. Ba4 {[%clk 0:02:49]}  b5 {[%clk 0:02:58]} 7. Bc2 {[%clk 0:02:48]}  Nge7 {[%clk 0:02:57]} 8. d4 {[%clk 0:02:47]}  cxd4 {[%clk 0:02:48]} 9. cxd4 {[%clk 0:02:48]}  exd4 {[%clk 0:02:46]} 10. Nxd4 {[%clk 0:02:38]}  Nxd4 {[%clk 0:02:44]} 11. Qxd4 {[%clk 0:02:39]}  Qc7 {[%clk 0:02:45]} 12. h3 {[%clk 0:02:33]}  Bh2+ {[%clk 0:02:23]} 13. Kh1 {[%clk 0:02:32]}  Qxc2 {[%clk 0:02:23]} 14. Kxh2 {[%clk 0:02:28]}  O-O {[%clk 0:02:21]} 15. Bf4 {[%clk 0:02:25]}  Nc6 {[%clk 0:02:14]} 16. Qe3 {[%clk 0:02:22]}  Qxb2 {[%clk 0:02:13]} 17. Nc3 {[%clk 0:02:21]}  b4 {[%clk 0:01:50]} 18. Nd5 {[%clk 0:02:19]}  Bb7 {[%clk 0:01:50]} 19. Rfb1 {[%clk 0:02:01]}  Qd4 {[%clk 0:01:40]} 20. Qg3 {[%clk 0:01:46]}  f6 {[%clk 0:01:24]} 21. f3 {[%clk 0:01:40]}  a5 {[%clk 0:01:22]} 22. Rd1 {[%clk 0:01:37]}  Qb2 {[%clk 0:01:20]} 23. Bc1 {[%clk 0:01:00]}  Qe2 {[%clk 0:00:38]} 24. Bh6 {[%clk 0:00:52]}  Rf7 {[%clk 0:00:37]} 25. Rd2 {[%clk 0:00:30]}  Qc4 {[%clk 0:00:30]} 26. Nb6 {[%clk 0:00:26]}  Qc3 {[%clk 0:00:26]} 27. Rad1 {[%clk 0:00:25]}  Rd8 {[%clk 0:00:22]} 28. Nxd7 {[%clk 0:00:24]}  Kh8 {[%clk 0:00:18]} 29. Ne5 {[%clk 0:00:17]}  Rff8 {[%clk 0:00:15]} 30. Qxg7# {[%clk 0:00:15]} 1-0


[Site "https://www.chess.com"]

[Event "Titled Tuesday Blitz February 15 Early 2022"]
[White "Kostiukov, Alexandr"]
[Black "Vusatiuk, Vladimir"]
[WhiteFideId "14108100"]
[BlackFideId "14118610"]
[WhiteElo "2202"]
[BlackElo "2157"]
[Result "1-0"]
[Round "03"]
[TimeControl "180+1"]
[Date "2022.02.15"]
[WhiteClock "0:00:11"]
[BlackClock "0:00:13"]

1. g3 {[%clk 0:02:58]}  h5 {[%clk 0:02:58]} 2. Bg2 {[%clk 0:02:57]}  h4 {[%clk 0:02:58]} 3. Nf3 {[%clk 0:02:57]}  h3 {[%clk 0:02:58]} 4. Bf1 {[%clk 0:02:57]}  d6 {[%clk 0:02:58]} 5. d4 {[%clk 0:02:58]}  Nf6 {[%clk 0:02:57]} 6. c4 {[%clk 0:02:58]}  Bf5 {[%clk 0:02:56]} 7. Nc3 {[%clk 0:02:57]}  Nc6 {[%clk 0:02:56]} 8. Bg5 {[%clk 0:02:43]}  Ne4 {[%clk 0:02:48]} 9. Nxe4 {[%clk 0:02:41]}  Bxe4 {[%clk 0:02:49]} 10. a3 {[%clk 0:02:18]}  f6 {[%clk 0:02:40]} 11. Bc1 {[%clk 0:02:14]}  g5 {[%clk 0:02:39]} 12. Rg1 {[%clk 0:02:05]}  e5 {[%clk 0:02:34]} 13. d5 {[%clk 0:01:48]}  Ne7 {[%clk 0:02:20]} 14. Nd2 {[%clk 0:01:45]}  Bg6 {[%clk 0:02:15]} 15. e4 {[%clk 0:01:43]}  f5 {[%clk 0:01:55]} 16. Bd3 {[%clk 0:01:37]}  Qd7 {[%clk 0:01:36]} 17. exf5 {[%clk 0:01:33]}  Nxf5 {[%clk 0:01:19]} 18. Ne4 {[%clk 0:01:19]}  Be7 {[%clk 0:01:19]} 19. Bxg5 {[%clk 0:01:15]}  O-O-O {[%clk 0:01:18]} 20. Nf6 {[%clk 0:01:08]}  Bxf6 {[%clk 0:00:58]} 21. Bxf6 {[%clk 0:01:07]}  e4 {[%clk 0:00:58]} 22. Be2 {[%clk 0:00:59]}  e3 {[%clk 0:00:52]} 23. f4 {[%clk 0:00:50]}  Rhe8 {[%clk 0:00:44]} 24. g4 {[%clk 0:00:34]}  Ne7 {[%clk 0:00:37]} 25. f5 {[%clk 0:00:33]}  Bf7 {[%clk 0:00:33]} 26. Qd4 {[%clk 0:00:31]}  Rg8 {[%clk 0:00:30]} 27. Qxa7 {[%clk 0:00:27]}  c6 {[%clk 0:00:19]} 28. Rg3 {[%clk 0:00:20]}  Nxf5 {[%clk 0:00:13]} 29. Bxd8 {[%clk 0:00:12]}  Qxd8 {[%clk 0:00:09]} 30. Qa8+ {[%clk 0:00:11]}  Kd7 {[%clk 0:00:09]} 31. Qxd8+ {[%clk 0:00:10]}  Kxd8 {[%clk 0:00:10]} 32. gxf5 {[%clk 0:00:10]}  Rf8 {[%clk 0:00:08]} 33. Bd3 {[%clk 0:00:09]}  cxd5 {[%clk 0:00:08]} 34. cxd5 {[%clk 0:00:09]}  Bxd5 {[%clk 0:00:09]} 35. Rxe3 {[%clk 0:00:09]}  Bg2 {[%clk 0:00:09]} 36. Kd2 {[%clk 0:00:09]}  Kd7 {[%clk 0:00:09]} 37. Rae1 {[%clk 0:00:09]}  Kc6 {[%clk 0:00:08]} 38. Be4+ {[%clk 0:00:10]}  d5 {[%clk 0:00:09]} 39. Bxg2 {[%clk 0:00:09]}  hxg2 {[%clk 0:00:10]} 40. Rf3 {[%clk 0:00:09]}  Rf6 {[%clk 0:00:09]} 41. Rg1 {[%clk 0:00:09]}  d4 {[%clk 0:00:09]} 42. Rxg2 {[%clk 0:00:10]}  Kd5 {[%clk 0:00:10]} 43. Rg6 {[%clk 0:00:09]}  Rf7 {[%clk 0:00:09]} 44. f6 {[%clk 0:00:10]}  Ke4 {[%clk 0:00:10]} 45. Rf2 {[%clk 0:00:10]}  Ke5 {[%clk 0:00:09]} 46. Rg7 {[%clk 0:00:10]}  Rf8 {[%clk 0:00:10]} 47. f7 {[%clk 0:00:11]}  Ke6 {[%clk 0:00:11]} 48. Rg8 {[%clk 0:00:11]}  Rxf7 {[%clk 0:00:11]} 49. Rxf7 {[%clk 0:00:10]}  Kxf7 {[%clk 0:00:12]} 50. Rb8 {[%clk 0:00:11]}  b5 {[%clk 0:00:13]} 51. Rxb5 {[%clk 0:00:11]} 1-0


[Site "https://www.chess.com"]